fUSD/lending_fUSD_20260508
["ID","MTS","AMOUNT","RATE_DAILY","PERIOD"]
[421798222,1778173840000,-200.0,0.00033158,2]
[421798223,1778173840000,-200.0,0.00033158,2]
[421798231,1778173840000,-200.0,0.00033158,2]
[421798220,1778173840000,-200.0,0.00033158,2]
[421798329,1778173841000,-200.0,0.00033998,10]
[421798337,1778173841000,-500.0,0.00033998,10]
[421798340,1778173841000,-500.0,0.00033998,10]
[421798341,1778173841000,-500.0,0.00033998,10]
[421798331,1778173841000,-200.0,0.00033998,10]
[421798333,1778173841000,-200.0,0.00033998,10]
[421798332,1778173841000,-200.0,0.00033998,10]
[421798334,1778173841000,-349.82327691,0.00033998,10]
[421798345,1778173841000,-500.0,0.00033998,10]
[421798339,1778173841000,-500.0,0.00033998,10]
[421798338,1778173841000,-151.0,0.00033998,10]
[421798335,1778173841000,-151.0,0.00033998,10]
[421798342,1778173841000,-500.0,0.00033998,10]
[421798347,1778173841000,-500.0,0.00033998,10]
[421798344,1778173841000,-209.40437684,0.00033998,10]
[421798330,1778173841000,-200.0,0.00033998,10]
[421798346,1778173841000,-217.15233878,0.00033998,10]
[421798336,1778173841000,-151.0,0.00033998,10]
[421798327,1778173841000,-200.0,0.00033998,10]
[421798306,1778173841000,-282.0,0.000339,120]
[421798328,1778173841000,-738.94777817,0.00033998,10]
[421798348,1778173841000,-174.61919141,0.00033998,10]
[421798310,1778173841000,-3626.0,0.00033921,2]
[421798308,1778173841000,-3537.0,0.00033921,2]
[421798305,1778173841000,-200.0,0.000339,120]
[421798315,1778173841000,-2236.95670848,0.00033972,5]
[421798314,1778173841000,-2157.14243826,0.00033972,5]
[421798312,1778173841000,-2080.17592889,0.00033972,5]
[421798303,1778173841000,-195.458427,0.000339,120]
[421798326,1778173841000,-599.60298507,0.00033998,10]
[421798317,1778173841000,-2405.55389864,0.00033972,5]
[421798318,1778173841000,-2494.55939289,0.00033972,5]
[421798321,1778173841000,-45398.8308891,0.00033984,2]
[421798320,1778173841000,-171.27841917,0.00033974,2]
[421798323,1778173841000,-171.27841917,0.0003399,2]
[421798319,1778173841000,-2725.97019189,0.00033972,5]
[421798322,1778173841000,-18181.6146564,0.00033984,2]
[421798325,1778173841000,-578.20924308,0.00033998,10]
[421798324,1778173841000,-151.0,0.00033997,14]
[421798316,1778173841000,-2319.72410669,0.00033972,5]
[421798351,1778173841000,-181.08010149,0.00033998,10]
[421798361,1778173841000,-300.0,0.00033999,10]
[421798353,1778173841000,-500.0,0.00033998,10]
[421798374,1778173841000,-3518291.13572738,0.00034,120]
[421798372,1778173841000,-235.0,0.00033999,7]
[421798373,1778173841000,-207961.80048464,0.00034,7]
[421798375,1778173841000,-606.81999954,0.00034,120]
[421798378,1778173841000,-3991.0,0.00025686,2]
[421798379,1778173841000,-3375.6786834,0.00025686,2]
[421798380,1778173841000,-155.1,0.00028649,2]
[421798382,1778173841000,-155.1,0.00028843,30]
[421798343,1778173841000,-500.0,0.00033998,10]
[421798383,1778173841000,-155.1,0.0002894,2]
[421798385,1778173841000,-353.0,0.00032,30]
[421798384,1778173841000,-532.0,0.000314,30]
[421798387,1778173841000,-532.08927369,0.00034,120]
[421798386,1778173841000,-307.0,0.00032,30]
[421798389,1778173841000,-233564.84975897,0.00034,120]
[421798388,1778173841000,-155.1,0.00029038,7]
[421798390,1778173841000,-24104.6103854,0.00034,120]
[421798377,1778173841000,-185473.77524045,0.00034,120]
[421798370,1778173841000,-153.0,0.00033999,7]
[421798381,1778173841000,-155.1,0.00028746,7]
[421798371,1778173841000,-153.0,0.00033999,7]
[421798376,1778173841000,-10296.76425145,0.00034,120]
[421798352,1778173841000,-233.51889341,0.00033998,10]
[421798350,1778173841000,-500.0,0.00033998,10]
[421798354,1778173841000,-272.79028371,0.00033998,10]
[421798349,1778173841000,-225.18697532,0.00033998,10]
[421798356,1778173841000,-500.0,0.00033998,10]
[421798366,1778173841000,-280.66942888,0.00033999,7]
[421798358,1778173841000,-274.80803997,0.00033998,10]
[421798360,1778173841000,-300.0,0.00033999,10]
[421798355,1778173841000,-242.15909246,0.00033998,10]
[421798357,1778173841000,-251.11897888,0.00033998,10]
[421798364,1778173841000,-671.85656189,0.00033999,10]
[421798365,1778173841000,-1534.0,0.00033999,7]
[421798363,1778173841000,-300.0,0.00033999,10]
[421798359,1778173841000,-300.0,0.00033999,10]
[421798367,1778173841000,-153.0,0.00033999,7]
[421798368,1778173841000,-153.0,0.00033999,7]
[421798369,1778173841000,-153.0,0.00033999,7]
[421798362,1778173841000,-300.0,0.00033999,10]
[421798405,1778173843000,-162.85,0.00025875,30]
[421798402,1778173843000,-162.85,0.00024658,2]
[421798403,1778173843000,-162.85,0.00025266,7]
[421798408,1778173843000,-155.1,0.00029232,2]
[421798409,1778173843000,-495.64,0.00031507,30]
[421798407,1778173843000,-155.1,0.00029135,30]
[421798404,1778173843000,-200.0,0.00025487,2]
[421798410,1778173843000,-2955.86066665,0.0003247,2]
[421798411,1778173843000,-162.85,0.00027093,7]
[421798406,1778173843000,-162.85,0.00026484,2]
[421798412,1778173844000,-623.26,0.0003247,2]
[421798413,1778173844000,-2464.87933335,0.0003247,2]
[421798417,1778173844000,-835.04321856,0.0003399,10]
[421798418,1778173844000,-581.99996384,0.0003399,10]
[421798416,1778173844000,-166.0,0.00031132,30]
[421798415,1778173844000,-1880.16066665,0.0003399,10]
[421798419,1778173844000,-348.69108629,0.0003399,10]
[421798414,1778173844000,-2000.0,0.000334,7]
[421798428,1778173846000,-162.85,0.00027701,30]
[421798433,1778173846000,-166.0,0.00032132,30]
[421798429,1778173846000,-162.85,0.0002831,2]
[421798430,1778173846000,-162.85,0.00028919,7]
[421798431,1778173846000,-162.85,0.00029528,30]
[421798427,1778173846000,-200.0,0.00023124,2]
[421798435,1778173846000,-166.0,0.00033132,30]
[421798439,1778173846000,-607.7230506,0.00034,120]
[421798438,1778173846000,-600323.95742529,0.00034,120]
[421798432,1778173846000,-162.9,0.00030136,2]
[421798436,1778173846000,-1322.69506466,0.0003399,10]
[421798434,1778173846000,-7366.6786834,0.00032793,2]
[421798437,1778173846000,-488.0,0.00033998,30]
[421798441,1778173847000,-3397.43151558,0.00034,120]
[421798440,1778173847000,-798.74,0.00034,120]
[421798457,1778174758000,500.0,1.39e-06,2]
[421798458,1778174975000,195.61,0.00030126,120]
[421798507,1778175034000,-375.0,0.00024,2]
[421798498,1778175034000,-166.0,0.00023,2]
[421798500,1778175034000,-375.0,0.00023,2]
[421798509,1778175034000,-176.03,0.00024577,2]
[421798493,1778175034000,-288.0,0.00022,2]
[421798492,1778175034000,-166.0,0.00022,2]
[421798496,1778175034000,-176.03,0.00022198,2]
[421798508,1778175034000,-151.0,0.00024,2]
[421798499,1778175034000,-288.0,0.00023,2]
[421798501,1778175034000,-151.0,0.00023,2]
[421798511,1778175034000,-290.0,0.00025,2]
[421798504,1778175034000,-207.9261601,0.00023952,2]
[421798503,1778175034000,-214.63993676,0.00023952,2]
[421798505,1778175034000,-166.0,0.00024,2]
[421798502,1778175034000,-176.03,0.00023784,2]
[421798488,1778175034000,-375.0,0.00021,2]
[421798523,1778175034000,-176.03,0.00027748,2]
[421798521,1778175034000,-503.0,0.00027137,2]
[421798512,1778175034000,-375.0,0.00025,2]
[421798510,1778175034000,-179.0,0.00025,2]
[421798522,1778175034000,-212.5,0.00027226,2]
[421798506,1778175034000,-288.0,0.00024,2]
[421798495,1778175034000,-151.0,0.00022,2]
[421798494,1778175034000,-375.0,0.00022,2]
[421798497,1778175034000,-176.03,0.00022991,2]
[421798470,1778175034000,-176.03,0.00016649,2]
[421798468,1778175034000,-176.03,0.00015063,2]
[421798472,1778175034000,-176.03,0.00018234,2]
[421798469,1778175034000,-176.03,0.00015856,2]
[421798471,1778175034000,-176.03,0.00017442,2]
[421798475,1778175034000,-180.2371,0.000199,2]
[421798473,1778175034000,-176.03,0.00019027,2]
[421798476,1778175034000,-166.0,0.0002,2]
[421798477,1778175034000,-288.0,0.0002,2]
[421798478,1778175034000,-375.0,0.0002,2]
[421798485,1778175034000,-412.0,0.00020999,2]
[421798474,1778175034000,-176.03,0.0001982,2]
[421798483,1778175034000,-220.94247839,0.0002025,2]
[421798484,1778175034000,-176.03,0.00020613,2]
[421798481,1778175034000,-155.0,0.0002,2]
[421798482,1778175034000,-152.0,0.0002,2]
[421798480,1778175034000,-151.0,0.0002,2]
[421798486,1778175034000,-166.0,0.00021,2]
[421798520,1778175034000,-176.03,0.00026955,2]
[421798491,1778175034000,-176.03,0.00021406,2]
[421798490,1778175034000,-158.41533471,0.00021,2]
[421798487,1778175034000,-288.0,0.00021,2]
[421798479,1778175034000,-159.0,0.0002,2]
[421798519,1778175034000,-151.0,0.00026296,2]
[421798489,1778175034000,-151.0,0.00021,2]
[421798517,1778175034000,-42146.00032977,0.00026062,2]
[421798547,1778175034000,-503.0,0.00030982,6]
[421798546,1778175034000,-500.0,0.00030787,2]
[421798549,1778175034000,-2500.0,0.00031086,120]
[421798551,1778175034000,-3865.37,0.00031086,2]
[421798553,1778175034000,-154.0,0.00031127,30]
[421798552,1778175034000,-151.0,0.00031127,30]
[421798550,1778175034000,-380.23,0.00031086,2]
[421798554,1778175034000,-288.0,0.00031127,30]
[421798560,1778175034000,-152.0,0.00031133,30]
[421798559,1778175034000,-155.0,0.00031133,30]
[421798539,1778175034000,-176.03,0.00030126,2]
[421798557,1778175034000,-154.0,0.00031133,30]
[421798556,1778175034000,-158.0,0.00031127,30]
[421798562,1778175034000,-7543.56,0.0003123,120]
[421798563,1778175034000,-200.0,0.0003129,2]
[421798564,1778175034000,-2772.0,0.000314,2]
[421798561,1778175034000,-500.0,0.00031209,120]
[421798565,1778175034000,-1000.0,0.000315,7]
[421798567,1778175034000,-662.97946602,0.000316,2]
[421798566,1778175034000,-662.97946603,0.000316,2]
[421798513,1778175034000,-167.0,0.00025,2]
[421798568,1778175034000,-500.62439048,0.00031643,5]
[421798558,1778175034000,-151.0,0.00031133,30]
[421798540,1778175034000,-288.41,0.00030126,2]
[421798555,1778175034000,-375.0,0.00031127,30]
[421798543,1778175034000,-151.0,0.00030239,2]
[421798515,1778175034000,-9965.28,0.00025,2]
[421798518,1778175034000,-176.03,0.00026162,2]
[421798542,1778175034000,-500.0,0.00030239,2]
[421798516,1778175034000,-176.03,0.0002537,2]
[421798526,1778175034000,-500.0,0.000278,7]
[421798525,1778175034000,-167.12,0.00027795,2]
[421798535,1778175034000,-150.0,0.00029534,2]
[421798536,1778175034000,-1092.88209981,0.0003,30]
[421798532,1778175034000,-176.03,0.00029333,2]
[421798530,1778175034000,-271.0,0.00028904,2]
[421798529,1778175034000,-176.03,0.00028541,2]
[421798527,1778175034000,-503.0,0.00028098,3]
[421798524,1778175034000,-167.12,0.00027793,2]
[421798528,1778175034000,-151.0,0.00028267,2]
[421798531,1778175034000,-503.0,0.00029059,4]
[421798541,1778175034000,-876.78,0.00030193,2]
[421798533,1778175034000,-152.0,0.00029334,7]
[421798537,1778175034000,-503.0,0.0003002,5]
[421798548,1778175034000,-150.0,0.00031011,2]
[421798538,1778175034000,-500.0,0.00030027,2]
[421798545,1778175034000,-500.0,0.00030513,2]
[421798534,1778175034000,-166.67,0.00029467,30]
[421798544,1778175034000,-5000.0,0.00030441,2]
[421798595,1778175035000,-500.0,0.00032356,120]
[421798607,1778175035000,-209.69293015,0.00033,120]
[421798606,1778175035000,-178.05601089,0.00033,120]
[421798605,1778175035000,-503.0,0.00032904,8]
[421798592,1778175035000,-151.0,0.0003221,5]
[421798604,1778175035000,-3865.37,0.0003264,2]
[421798603,1778175035000,-150.0,0.00032562,2]
[421798600,1778175035000,-500.0,0.00032356,120]
[421798609,1778175035000,-199.98690457,0.00033,120]
[421798602,1778175035000,-41192.651,0.000325,120]
[421798610,1778175035000,-417.5168001,0.00033,120]
[421798619,1778175035000,-607.57693204,0.00033125,7]
[421798601,1778175035000,-2000.0,0.00032466,30]
[421798611,1778175035000,-177.87316857,0.00033,120]
[421798613,1778175035000,-607.57693204,0.00033125,7]
[421798615,1778175035000,-500.0,0.00033125,7]
[421798614,1778175035000,-500.0,0.00033125,7]
[421798623,1778175035000,-214.63993676,0.00033126,7]
[421798612,1778175035000,-490.0,0.00033,14]
[421798621,1778175035000,-607.57693204,0.00033125,7]
[421798617,1778175035000,-607.57693204,0.00033125,7]
[421798593,1778175035000,-1546.724,0.00032281,32]
[421798622,1778175035000,-607.57693204,0.00033125,7]
[421798608,1778175035000,-1160.12840838,0.00033,120]
[421798594,1778175035000,-500.0,0.00032356,120]
[421798569,1778175035000,-3450.41,0.00031853,10]
[421798590,1778175035000,-155.0,0.00032133,30]
[421798616,1778175035000,-607.57693204,0.00033125,7]
[421798572,1778175035000,-178.05601089,0.00032,120]
[421798573,1778175035000,-209.69293015,0.00032,120]
[421798570,1778175035000,-3865.37,0.00031863,2]
[421798571,1778175035000,-503.0,0.00031943,7]
[421798576,1778175035000,-417.5168001,0.00032,120]
[421798574,1778175035000,-1160.12840838,0.00032,120]
[421798578,1778175035000,-201.26372769,0.00032,120]
[421798577,1778175035000,-177.87316857,0.00032,120]
[421798583,1778175035000,-151.0,0.00032127,30]
[421798584,1778175035000,-154.0,0.00032127,30]
[421798581,1778175035000,-567.673,0.00032082,120]
[421798586,1778175035000,-375.0,0.00032127,30]
[421798579,1778175035000,-166.5,0.00032018,2]
[421798575,1778175035000,-199.98690457,0.00032,120]
[421798582,1778175035000,-4140.49,0.00032117,10]
[421798580,1778175035000,-500.0,0.00032082,120]
[421798585,1778175035000,-288.0,0.00032127,30]
[421798588,1778175035000,-154.0,0.00032133,30]
[421798596,1778175035000,-500.0,0.00032356,120]
[421798597,1778175035000,-500.0,0.00032356,120]
[421798599,1778175035000,-500.0,0.00032356,120]
[421798598,1778175035000,-500.0,0.00032356,120]
[421798591,1778175035000,-152.0,0.00032133,30]
[421798589,1778175035000,-151.0,0.00032133,30]
[421798587,1778175035000,-158.0,0.00032127,30]
[421798618,1778175035000,-500.0,0.00033125,7]
[421798641,1778175035000,-1610.89109739,0.00033269,2]
[421798624,1778175035000,-151.0,0.00033127,30]
[421798651,1778175035000,-3865.37,0.00033417,2]
[421798656,1778175035000,-607.57693204,0.00033125,7]
[421798658,1778175035000,-607.57693204,0.00033125,7]
[421798661,1778175035000,-500.0,0.00033747,2]
[421798663,1778175035000,-168.14219553,0.0003379,2]
[421798660,1778175035000,-4329.82225649,0.00033745,2]
[421798659,1778175035000,-607.57693204,0.00033125,7]
[421798664,1778175035000,-9509.25531591,0.000338,2]
[421798662,1778175035000,-328.56986513,0.00033747,2]
[421798665,1778175035000,-571.75396358,0.000338,2]
[421798671,1778175035000,-300.4101434,0.00033807,60]
[421798650,1778175035000,-1000.0,0.000333,2]
[421798666,1778175035000,-210.41445728,0.000338,6]
[421798674,1778175035000,-438.3867085,0.00033835,2]
[421798675,1778175035000,-151.0,0.00033842,14]
[421798672,1778175035000,-187.5,0.00033807,60]
[421798668,1778175035000,-427.745025,0.000338,2]
[421798673,1778175035000,-261.2811879,0.00033807,60]
[421798670,1778175035000,-191.216409,0.00033807,60]
[421798667,1778175035000,-182.92972982,0.000338,2]
[421798677,1778175035000,-200.0,0.00033844,30]
[421798678,1778175035000,-54317.39522238,0.00033845,2]
[421798676,1778175035000,-568.1795741,0.00033844,120]
[421798620,1778175035000,-261.03543804,0.00033125,7]
[421798669,1778175035000,-203.3868328,0.00033807,60]
[421798648,1778175035000,-1467.82670162,0.00033269,2]
[421798657,1778175035000,-607.57693204,0.00033125,7]
[421798654,1778175035000,-2500.0,0.00033745,2]
[421798627,1778175035000,-375.0,0.00033127,30]
[421798626,1778175035000,-288.0,0.00033127,30]
[421798628,1778175035000,-158.0,0.00033127,30]
[421798629,1778175035000,-154.0,0.00033133,30]
[421798625,1778175035000,-154.0,0.00033127,30]
[421798635,1778175035000,-167.94,0.00033174,2]
[421798653,1778175035000,-4782.62225649,0.00033638,2]
[421798634,1778175035000,-200.0,0.00033174,2]
[421798630,1778175035000,-151.0,0.00033133,30]
[421798632,1778175035000,-152.0,0.00033133,30]
[421798633,1778175035000,-490.0,0.00033151,30]
[421798637,1778175035000,-1000.0,0.00033174,2]
[421798636,1778175035000,-757.28,0.00033174,2]
[421798631,1778175035000,-155.0,0.00033133,30]
[421798638,1778175035000,-350.0,0.0003325,2]
[421798639,1778175035000,-2953.28336689,0.00033269,2]
[421798652,1778175035000,-1582.11483951,0.00033638,2]
[421798649,1778175035000,-307.0,0.000333,2]
[421798647,1778175035000,-607.57693204,0.00033125,7]
[421798644,1778175035000,-499.50294632,0.000316,2]
[421798646,1778175035000,-458.96769122,0.00033125,7]
[421798655,1778175035000,-670.17774351,0.00033745,2]
[421798645,1778175035000,-163.4765197,0.000316,2]
[421798640,1778175035000,-332.7359301,0.00033269,2]
[421798642,1778175035000,-607.57693204,0.00033125,7]
[421798643,1778175035000,-148.60924082,0.00033125,7]
[421798694,1778175037000,-607.57693204,0.00033125,7]
[421798695,1778175037000,-607.57693204,0.00033125,7]
[421798686,1778175037000,-607.57693204,0.00033125,7]
[421798685,1778175037000,-607.57693204,0.00033125,7]
[421798692,1778175037000,-607.57693204,0.00033125,7]
[421798687,1778175037000,-254.3845437,0.00033125,7]
[421798683,1778175037000,-607.57693204,0.00033125,7]
[421798684,1778175037000,-607.57693204,0.00033125,7]
[421798681,1778175037000,-607.57693204,0.00033125,7]
[421798682,1778175037000,-607.57693204,0.00033125,7]
[421798680,1778175037000,-607.57693204,0.00033125,7]
[421798679,1778175037000,-607.57693204,0.00033125,7]
[421798688,1778175037000,-353.19238834,0.00033125,7]
[421798693,1778175037000,-607.57693204,0.00033125,7]
[421798690,1778175037000,-418.30322926,0.00033125,7]
[421798700,1778175037000,-607.57693204,0.00033125,7]
[421798691,1778175037000,-607.57693204,0.00033125,7]
[421798689,1778175037000,-189.27370278,0.00033125,7]
[421798709,1778175037000,-535.78155629,0.00033125,7]
[421798708,1778175037000,-607.57693204,0.00033125,7]
[421798704,1778175037000,-607.57693204,0.00033125,7]
[421798698,1778175037000,-607.57693204,0.00033125,7]
[421798699,1778175037000,-607.57693204,0.00033125,7]
[421798702,1778175037000,-607.57693204,0.00033125,7]
[421798703,1778175037000,-607.57693204,0.00033125,7]
[421798707,1778175037000,-607.57693204,0.00033125,7]
[421798705,1778175037000,-607.57693204,0.00033125,7]
[421798706,1778175037000,-607.57693204,0.00033125,7]
[421798697,1778175037000,-607.57693204,0.00033125,7]
[421798696,1778175037000,-607.57693204,0.00033125,7]
[421798701,1778175037000,-607.57693204,0.00033125,7]
[421798761,1778175038000,-200.53352621,0.0003399,2]
[421798747,1778175038000,-10684.27,0.000339,7]
[421798749,1778175038000,-177.87316857,0.000339,120]
[421798759,1778175038000,-310.0,0.00033973,33]
[421798763,1778175038000,-151.0,0.0003399,2]
[421798755,1778175038000,-1001.4002437,0.00033945,2]
[421798751,1778175038000,-3047.5857849,0.00033945,2]
[421798753,1778175038000,-78880.6954726,0.00033945,2]
[421798765,1778175038000,-2000.0,0.0003399,49]
[421798774,1778175038000,-599.60298507,0.00033999,7]
[421798779,1778175038000,-200.0,0.00033999,7]
[421798772,1778175038000,-200.0,0.00033999,7]
[421798770,1778175038000,-578.20924308,0.00033999,7]
[421798777,1778175038000,-738.94777817,0.00033999,7]
[421798775,1778175038000,-200.0,0.00033999,7]
[421798745,1778175038000,-417.5168001,0.000339,120]
[421798781,1778175038000,-200.0,0.00033999,7]
[421798784,1778175038000,-200.0,0.00033999,7]
[421798787,1778175038000,-200.0,0.00033999,7]
[421798792,1778175038000,-349.82327691,0.00033999,7]
[421798767,1778175038000,-151.0,0.00033997,14]
[421798743,1778175038000,-167.22,0.000339,7]
[421798737,1778175038000,-2000.0,0.000339,2]
[421798741,1778175038000,-850.04,0.000339,14]
[421798790,1778175038000,-151.0,0.00033999,7]
[421798711,1778175038000,-607.57693204,0.00033125,7]
[421798710,1778175038000,-71.79537575,0.00033125,7]
[421798712,1778175038000,-607.57693204,0.00033125,7]
[421798714,1778175038000,-607.57693204,0.00033125,7]
[421798715,1778175038000,-607.57693204,0.00033125,7]
[421798716,1778175038000,-607.57693204,0.00033125,7]
[421798713,1778175038000,-607.57693204,0.00033125,7]
[421798718,1778175038000,-607.57693204,0.00033125,7]
[421798739,1778175038000,-1500000.0,0.000339,2]
[421798733,1778175038000,-178.05601089,0.000339,120]
[421798726,1778175038000,-2455.55956114,0.000338,2]
[421798724,1778175038000,-607.57693204,0.00033125,7]
[421798729,1778175038000,-503.0,0.00033865,9]
[421798720,1778175038000,-607.57693204,0.00033125,7]
[421798722,1778175038000,-607.57693204,0.00033125,7]
[421798723,1778175038000,-607.57693204,0.00033125,7]
[421798721,1778175038000,-607.57693204,0.00033125,7]
[421798735,1778175038000,-209.69293015,0.000339,120]
[421798727,1778175038000,-1964568.21947762,0.00033845,2]
[421798731,1778175038000,-438.3867085,0.0003389,2]
[421798786,1778175038000,-151.0,0.00033999,7]
[421798757,1778175038000,-9733.6439688,0.00033945,2]
[421798793,1778175038000,-151.0,0.00033999,7]
[421798854,1778175038000,-2494.55939289,0.00033999,7]
[421798852,1778175038000,-2405.55389864,0.00033999,7]
[421798850,1778175038000,-2319.72410669,0.00033999,7]
[421798840,1778175038000,-348.01153739,0.00033999,7]
[421798842,1778175038000,-2080.17592889,0.00033999,7]
[421798844,1778175038000,-2157.14243826,0.00033999,7]
[421798846,1778175038000,-2236.95670848,0.00033999,7]
[421798856,1778175038000,-2725.97019189,0.00033999,7]
[421798858,1778175038000,-214.63993676,0.00033999,7]
[421798848,1778175038000,-214.63993676,0.00033999,7]
[421798860,1778175038000,-219.38188348,0.00033999,2]
[421798863,1778175038000,-153.0,0.00034,7]
[421798876,1778175038000,-235.0,0.00034,7]
[421798879,1778175038000,-230.08675194,0.00034,7]
[421798869,1778175038000,-153.0,0.00034,7]
[421798877,1778175038000,-154.0,0.00034,7]
[421798873,1778175038000,-153.0,0.00034,7]
[421798866,1778175038000,-153.0,0.00034,7]
[421798881,1778175038000,-373999.7523057,0.00034,120]
[421798794,1778175038000,-500.0,0.00033999,7]
[421798862,1778175038000,-1534.0,0.00034,7]
[421798838,1778175038000,-231.54999765,0.00033999,7]
[421798867,1778175038000,-153.0,0.00034,7]
[421798822,1778175038000,-500.0,0.00033999,7]
[421798832,1778175038000,-260.4103811,0.00033999,7]
[421798796,1778175038000,-158.09655178,0.00033999,7]
[421798797,1778175038000,-500.0,0.00033999,7]
[421798802,1778175038000,-500.0,0.00033999,7]
[421798795,1778175038000,-500.0,0.00033999,7]
[421798807,1778175038000,-500.0,0.00033999,7]
[421798806,1778175038000,-209.40437684,0.00033999,7]
[421798810,1778175038000,-217.15233878,0.00033999,7]
[421798799,1778175038000,-500.0,0.00033999,7]
[421798800,1778175038000,-500.0,0.00033999,7]
[421798804,1778175038000,-500.0,0.00033999,7]
[421798813,1778175038000,-225.18697532,0.00033999,7]
[421798811,1778175038000,-500.0,0.00033999,7]
[421798828,1778175038000,-251.11897888,0.00033999,7]
[421798821,1778175038000,-181.08010149,0.00033999,7]
[421798830,1778175038000,-194.72792766,0.00033999,7]
[421798871,1778175038000,-280.66942888,0.00034,7]
[421798824,1778175038000,-242.15909246,0.00033999,7]
[421798826,1778175038000,-187.78006525,0.00033999,7]
[421798817,1778175038000,-500.0,0.00033999,7]
[421798815,1778175038000,-174.61919141,0.00033999,7]
[421798819,1778175038000,-233.51889341,0.00033999,7]
[421799097,1778175040000,-2000.0,0.0003439,49]
[421799106,1778175040000,-152.0,0.00034502,6]
[421799101,1778175040000,-11092.74051436,0.000345,120]
[421799111,1778175040000,-384.0,0.00034524,30]
[421799112,1778175040000,-519.0,0.00034524,30]
[421799114,1778175040000,-1426.21718108,0.00034525,2]
[421799110,1778175040000,-468.0,0.00034524,30]
[421799099,1778175040000,-301.42,0.00034491,120]
[421799104,1778175040000,-158.0,0.000345,120]
[421799116,1778175040000,-2000.0,0.0003459,49]
[421799120,1778175040000,-300.0,0.00034594,120]
[421799108,1778175040000,-490.0,0.00034521,30]
[421799122,1778175040000,-296.0,0.00034594,120]
[421799135,1778175040000,-5000.0,0.00034765,7]
[421799137,1778175040000,-1426.21718108,0.00034776,2]
[421799133,1778175040000,-6364.737096,0.00034746,2]
[421799087,1778175040000,-152.0,0.00034133,30]
[421799124,1778175040000,-181.17056358,0.00034594,120]
[421799103,1778175040000,-203.16649843,0.000345,7]
[421799092,1778175040000,-2000.0,0.0003419,49]
[421799074,1778175040000,-154.0,0.00034127,30]
[421799090,1778175040000,-150.0,0.0003419,2]
[421799138,1778175040000,-2000.0,0.0003479,49]
[421799057,1778175040000,-27000.10166159,0.00034,120]
[421799065,1778175040000,-224.0,0.00034,120]
[421799067,1778175040000,-21405.42182689,0.00034,2]
[421799068,1778175040000,-154.22364052,0.00034,7]
[421799059,1778175040000,-330.10651893,0.00034,2]
[421799063,1778175040000,-1811.79166467,0.00034,120]
[421799072,1778175040000,-151.0,0.00034127,30]
[421799088,1778175040000,-151.0,0.00034182,7]
[421799061,1778175040000,-5000.0,0.00034,7]
[421799076,1778175040000,-288.0,0.00034127,30]
[421799081,1778175040000,-154.0,0.00034133,30]
[421799079,1778175040000,-158.0,0.00034127,30]
[421799078,1778175040000,-375.0,0.00034127,30]
[421799085,1778175040000,-155.0,0.00034133,30]
[421799083,1778175040000,-151.0,0.00034133,30]
[421799096,1778175040000,-6364.737096,0.00034377,2]
[421799094,1778175040000,-3865.37,0.00034194,2]
[421799070,1778175040000,-6364.737096,0.00034008,2]
[421799140,1778175040000,-503.0,0.00034826,10]
[421799118,1778175040000,-300.0,0.00034594,120]